fUST/lending_fUST_20240320
["ID","MTS","AMOUNT","RATE_DAILY","PERIOD"]
[319707543,1710933045012,-432.469671,0.00031951,2]
[319707544,1710933045022,-432.469671,0.00031951,2]
[319707546,1710933045031,-432.469671,0.00031951,2]
[319707548,1710933045041,-432.469671,0.00031951,2]
[319707550,1710933045051,-432.469671,0.00031951,2]
[319707551,1710933045060,-432.469671,0.00031951,2]
[319707552,1710933045070,-432.469671,0.00031951,2]
[319707554,1710933045079,-432.469671,0.00031951,2]
[319707556,1710933045088,-183.424932,0.00031951,2]
[319707558,1710933045097,-183.424932,0.00031951,2]
[319707560,1710933045107,-160.0,0.00031951,10]
[319707562,1710933045116,-151.0,0.00031951,2]
[319707564,1710933045126,-176.26158679,0.00031952,10]
[319707565,1710933045136,-250.022348,0.00031952,2]
[319707567,1710933045146,-250.022348,0.00031952,2]
[319707568,1710933045155,-250.022348,0.00031952,2]
[319707569,1710933045165,-250.022348,0.00031952,2]
[319707571,1710933045174,-250.022348,0.00031952,2]
[319707572,1710933045183,-250.022348,0.00031952,2]
[319707574,1710933045192,-250.022348,0.00031952,2]
[319707575,1710933045202,-250.022348,0.00031952,2]
[319707577,1710933045212,-250.022348,0.00031952,2]
[319707579,1710933045221,-250.022348,0.00031952,2]
[319707581,1710933045231,-250.022348,0.00031952,2]
[319707583,1710933045240,-250.022348,0.00031952,2]
[319707585,1710933045249,-151.0,0.00031952,2]
[319707587,1710933045259,-151.0,0.00031952,2]
[319707589,1710933045268,-151.0,0.00031952,2]
[319707591,1710933045277,-251.027523,0.00031952,2]
[319707593,1710933045286,-2066.28,0.00031952,2]
[319707595,1710933045296,-500.0,0.00031952,2]
[319707597,1710933045305,-2338.75,0.00031952,2]
[319707599,1710933045314,-183.424932,0.00031952,2]
[319707601,1710933045323,-183.424932,0.00031952,2]
[319707603,1710933045332,-589.59,0.00031952,2]
[319707605,1710933045342,-500.0,0.00031952,2]
[319707607,1710933045351,-500.0,0.00031952,2]
[319707609,1710933045361,-5886.11,0.00031952,2]
[319707611,1710933045371,-5436.17,0.00031952,2]
[319707613,1710933045381,-151.0,0.00031952,2]
[319707615,1710933045391,-500.0,0.00031952,2]
[319707617,1710933045401,-500.0,0.00031952,2]
[319707619,1710933045411,-500.0,0.00031952,2]
[319707621,1710933045420,-500.0,0.00031952,2]
[319707623,1710933045430,-876.1,0.00031952,2]
[319707625,1710933045441,-2109.39,0.00031952,2]
[319707627,1710933045450,-500.0,0.00031952,2]
[319707629,1710933045460,-500.0,0.00031952,2]
[319707631,1710933045469,-500.0,0.00031952,2]
[319707633,1710933045479,-500.0,0.00031952,2]
[319707635,1710933045489,-1852.025941,0.00031952,2]
[319707637,1710933045497,-1852.025941,0.00031952,2]
[319707639,1710933045507,-1852.025941,0.00031952,2]
[319707641,1710933045516,-444.14758612,0.00031952,2]
[319707643,1710933045526,-30669.81,0.00031952,2]
[319707645,1710933045535,-500.0,0.00031952,2]
[319707647,1710933045545,-1852.025941,0.00031952,2]
[319707649,1710933045555,-1852.025941,0.00031952,2]
[319707651,1710933045565,-1852.025932,0.00031952,2]
[319707653,1710933045575,-500.0,0.00031952,2]
[319707655,1710933045585,-6885.87,0.00031952,2]
[319707657,1710933045594,-501.00961517,0.00031952,2]
[319707659,1710933045604,-1111.42,0.00031952,2]
[319707661,1710933045614,-8325.38,0.00031952,2]
[319707663,1710933045630,-500.0,0.00031952,2]
[319707665,1710933045639,-500.0,0.00031953,2]
[319707667,1710933045650,-618.57247678,0.00031953,2]
[319707669,1710933045661,-500.0,0.00031953,2]
[319707671,1710933045673,-500.0,0.00031953,2]
[319707673,1710933045685,-160.06729213,0.00031953,2]
[319707675,1710933045694,-500.0,0.00031953,2]
[319707677,1710933045704,-500.0,0.00031953,2]
[319707679,1710933045713,-300.13780369,0.00031953,2]
[319707681,1710933045722,-303.63941454,0.00031953,2]
[319707683,1710933045731,-500.0,0.00031953,2]
[319707685,1710933045741,-300.13780658,0.00031953,2]
[319707687,1710933045752,-500.0,0.00031953,2]
[319707689,1710933045762,-500.0,0.00031953,2]
[319707691,1710933045771,-665.5,0.00031953,2]
[319707693,1710933045781,-500.0,0.00031953,2]
[319707695,1710933045791,-2697.466852,0.00031953,2]
[319707697,1710933045801,-557.59,0.00031953,2]
[319707699,1710933045812,-2697.466852,0.00031953,2]
[319707701,1710933045822,-2697.466852,0.00031953,2]
[319707702,1710933045832,-2697.466852,0.00031953,2]
[319707703,1710933045843,-2697.466852,0.00031953,2]
[319707704,1710933045853,-2697.466852,0.00031953,2]
[319707705,1710933045862,-2697.466852,0.00031953,2]
[319707706,1710933045872,-2697.466852,0.00031953,2]
[319707707,1710933045882,-2697.466852,0.00031953,2]
[319707708,1710933045892,-2697.466852,0.00031953,2]
[319707709,1710933045903,-2697.466852,0.00031953,2]
[319707710,1710933045913,-2697.466852,0.00031953,2]
[319707711,1710933045922,-2697.466852,0.00031953,2]
[319707712,1710933045932,-2697.466852,0.00031953,2]
[319707713,1710933045942,-2697.466852,0.00031953,2]
[319707714,1710933045952,-2697.466852,0.00031953,2]
[319707715,1710933045962,-500.0,0.00031953,2]
[319707716,1710933045971,-826.7,0.00031953,2]
[319707717,1710933045981,-906.67,0.00031953,2]
[319707718,1710933045990,-500.0,0.00031953,2]
[319707719,1710933045999,-500.0,0.00031953,2]
[319707720,1710933046009,-616.16818081,0.00031953,2]
[319707721,1710933046018,-500.0,0.00031953,2]
[319707722,1710933046029,-501.83,0.00031953,2]
[319707723,1710933046039,-151.0,0.00031953,2]
[319707725,1710933046048,-151.0,0.00031953,2]
[319707726,1710933046058,-151.0,0.00031953,2]
[319707728,1710933046067,-151.0,0.00031953,2]
[319707730,1710933046077,-151.0,0.00031953,2]
[319707732,1710933046086,-151.0,0.00031953,2]
[319707734,1710933046096,-151.0,0.00031953,2]
[319707735,1710933046105,-500.0,0.00031953,2]
[319707736,1710933046114,-156.351955,0.00031953,2]
[319707737,1710933046124,-500.0,0.00031953,2]
[319707738,1710933046134,-500.0,0.00031953,2]
[319707739,1710933046143,-500.0,0.00031953,2]
[319707740,1710933046153,-250.022348,0.00031953,2]
[319707741,1710933046162,-250.022348,0.00031953,2]
[319707742,1710933046172,-500.0,0.00031953,2]
[319707743,1710933046181,-250.022348,0.00031953,2]
[319707744,1710933046191,-250.022348,0.00031953,2]
[319707745,1710933046200,-500.0,0.00031953,2]
[319707746,1710933046210,-979.6,0.00031953,2]
[319707747,1710933046220,-500.0,0.00031953,2]
[319707748,1710933046230,-500.0,0.00031953,2]
[319707749,1710933046240,-500.0,0.00031953,2]
[319707750,1710933046250,-420.73318553,0.00031953,2]
[319707751,1710933046259,-500.0,0.00031953,2]
[319707752,1710933046268,-500.0,0.00031953,2]
[319707753,1710933046278,-500.0,0.00031953,2]
[319707754,1710933046287,-500.0,0.00031953,2]
[319707755,1710933046297,-500.0,0.00031953,2]
[319707756,1710933046306,-500.0,0.00031953,2]
[319707757,1710933046315,-500.0,0.00031953,2]
[319707758,1710933046325,-1437.52,0.00031953,2]
[319707760,1710933046420,-500.0,0.00031953,2]
[319707761,1710933046431,-500.0,0.00031953,2]
[319707762,1710933046440,-500.0,0.00031953,2]
[319707763,1710933046449,-500.0,0.00031953,2]
[319707764,1710933046459,-500.0,0.00031953,2]
[319707765,1710933046468,-500.0,0.00031953,2]
[319707766,1710933046477,-500.0,0.00031953,2]
[319707767,1710933046486,-500.0,0.00031953,2]
[319707768,1710933046496,-500.0,0.00031953,2]
[319707769,1710933046505,-500.0,0.00031953,2]
[319707770,1710933046514,-500.0,0.00031953,2]
[319707771,1710933046524,-500.0,0.00031953,2]
[319707772,1710933046533,-500.0,0.00031953,2]
[319707773,1710933046542,-500.0,0.00031953,2]
[319707774,1710933046552,-500.0,0.00031953,2]
[319707775,1710933046561,-500.0,0.00031953,2]
[319707776,1710933046570,-500.0,0.00031953,2]
[319707777,1710933046579,-432.469671,0.00031953,2]
[319707779,1710933046589,-500.0,0.00031953,2]
[319707781,1710933046599,-500.0,0.00031953,2]
[319707783,1710933046608,-432.46967,0.00031953,2]
[319707785,1710933046618,-286.81652653,0.00031953,2]
[319707787,1710933046630,-500.0,0.00031953,2]
[319707789,1710933046639,-611.05,0.00031953,2]
[319707791,1710933046648,-22.37838715,0.00031953,2]
[319707796,1710933046904,-4616.82861223,0.00031231,4]
[319707797,1710933046915,-564.87320446,0.00031953,2]
[319707798,1710933046925,-500.0,0.00031953,2]
[319707799,1710933046934,-500.0,0.00031953,2]
[319707800,1710933046944,-579.95999561,0.00031953,2]
[319707801,1710933046953,-500.0,0.00031953,2]
[319707802,1710933046963,-500.0,0.00031953,2]
[319707803,1710933046972,-637.6,0.00031953,2]
[319707804,1710933046981,-2898.99,0.00031953,2]
[319707805,1710933046991,-635.43,0.00031953,2]
[319707806,1710933047001,-500.0,0.00031953,2]
[319707807,1710933047011,-500.0,0.00031953,2]
[319707808,1710933047020,-502.02005235,0.00031953,2]
[319707809,1710933047029,-500.0,0.00031953,2]
[319707810,1710933047039,-710.57,0.00031953,2]
[319707811,1710933047048,-500.0,0.00031953,2]
[319707812,1710933047058,-500.0,0.00031953,2]
[319707813,1710933047067,-500.0,0.00031953,2]
[319707814,1710933047076,-2774.53,0.00031953,2]
[319707815,1710933047085,-1608.97,0.00031953,2]
[319707816,1710933047095,-500.0,0.00031953,2]
[319707817,1710933047105,-500.0,0.00031953,2]
[319707818,1710933047115,-183.424932,0.00031953,2]
[319707819,1710933047125,-500.0,0.00031953,2]
[319707820,1710933047135,-183.42493,0.00031953,2]
[319707821,1710933047145,-500.0,0.00031953,2]
[319707822,1710933047154,-733.49,0.00031953,2]
[319707823,1710933047165,-500.0,0.00031953,2]
[319707824,1710933047175,-5268.1,0.00031953,2]
[319707825,1710933047185,-500.0,0.00031953,2]
[319707826,1710933047195,-500.0,0.00031953,2]
[319707827,1710933047206,-500.0,0.00031953,2]
[319707828,1710933047215,-188.53123556,0.00031953,2]
[319707829,1710933047224,-500.0,0.00031953,2]
[319707830,1710933047234,-500.0,0.00031953,2]
[319707831,1710933047243,-500.0,0.00031953,2]
[319707832,1710933047252,-500.0,0.00031953,2]
[319707833,1710933047261,-500.0,0.00031953,2]
[319707834,1710933047271,-500.0,0.00031953,2]
[319707835,1710933047282,-500.0,0.00031953,2]
[319707836,1710933047291,-500.0,0.00031953,2]
[319707837,1710933047300,-500.0,0.00031953,2]
[319707838,1710933047310,-500.0,0.00031953,2]
[319707839,1710933047319,-625.81,0.00031953,2]
[319707840,1710933047328,-151.0,0.00031953,2]
[319707841,1710933047337,-205.94451388,0.00031953,2]
[319707842,1710933047347,-500.0,0.00031953,2]
[319707843,1710933047356,-500.0,0.00031953,2]
[319707844,1710933047365,-313.4052767,0.00031953,2]
[319707845,1710933047375,-646.11157412,0.00031953,2]
[319707846,1710933047385,-500.0,0.00031953,2]
[319707847,1710933047396,-500.0,0.00031953,2]
[319707848,1710933047406,-1187.58,0.00031953,2]
[319707849,1710933047416,-500.0,0.00031953,2]
[319707850,1710933047425,-627.42,0.00031953,2]
[319707851,1710933047435,-500.0,0.00031953,2]
[319707852,1710933047444,-500.0,0.00031953,2]
[319707853,1710933047453,-3166.78,0.00031953,2]
[319707854,1710933047463,-1488.32,0.00031953,2]
[319707855,1710933047472,-1309.0,0.00031953,2]
[319707856,1710933047481,-500.0,0.00031953,2]
[319707857,1710933047491,-500.0,0.00031953,2]
[319707858,1710933047500,-500.0,0.00031953,2]
[319707859,1710933047510,-500.0,0.00031953,2]
[319707860,1710933047520,-500.0,0.00031953,2]
[319707861,1710933047529,-500.0,0.00031953,2]
[319707862,1710933047539,-236.8074164,0.00031953,2]
[319707863,1710933047549,-500.62,0.00031953,2]
[319707864,1710933047559,-500.0,0.00031953,2]
[319707865,1710933047569,-500.0,0.00031953,2]
[319707866,1710933047578,-244.70130643,0.00031953,2]
[319707867,1710933047588,-500.0,0.00031953,2]
[319707868,1710933047598,-654.64,0.00031953,2]
[319707869,1710933047608,-4246.51,0.00031953,2]
[319707870,1710933047618,-500.0,0.00031953,2]
[319707871,1710933047630,-500.0,0.00031953,2]
[319707872,1710933047639,-500.0,0.00031953,2]
[319707873,1710933047649,-395.7526062,0.00031953,2]
[319707874,1710933047658,-170.68065755,0.00031953,2]
[319707875,1710933047670,-500.0,0.00031953,2]
[319707876,1710933047682,-500.0,0.00031953,2]
[319707877,1710933047692,-500.0,0.00031953,2]
[319707878,1710933047702,-500.0,0.00031953,2]
[319707879,1710933047713,-500.0,0.00031953,2]
[319707880,1710933047722,-500.0,0.00031953,2]
[319707881,1710933047731,-342.10691551,0.00031953,2]
[319707882,1710933047742,-500.0,0.00031953,2]
[319707883,1710933047751,-500.0,0.00031954,2]
[319707884,1710933047761,-500.0,0.00031954,2]
[319707885,1710933047771,-198.52109372,0.00031954,2]
[319707886,1710933047781,-500.0,0.00031954,2]
[319707887,1710933047790,-500.0,0.00031954,2]
[319707888,1710933047800,-500.0,0.00031954,2]
[319707889,1710933047810,-500.0,0.00031954,2]
[319707890,1710933047820,-500.0,0.00031954,2]
[319707891,1710933047830,-500.0,0.00031954,2]
[319707892,1710933047839,-250.022348,0.00031954,2]
[319707893,1710933047851,-250.022348,0.00031954,2]
[319707894,1710933047861,-250.022348,0.00031954,2]
[319707895,1710933047870,-250.022343,0.00031954,2]
[319707896,1710933047880,-500.0,0.00031954,2]
[319707897,1710933047890,-500.0,0.00031954,2]
[319707898,1710933047899,-500.0,0.00031954,2]
[319707899,1710933047908,-500.0,0.00031954,2]
[319707900,1710933047917,-500.0,0.00031954,2]
[319707901,1710933047926,-500.0,0.00031954,2]
[319707902,1710933047936,-500.0,0.00031954,2]
[319707903,1710933047945,-1231.33,0.00031954,2]
[319707904,1710933047954,-919.86,0.00031954,2]
[319707905,1710933047963,-500.0,0.00031954,2]
[319707906,1710933047972,-1157.54,0.00031954,2]
[319707907,1710933047981,-500.0,0.00031954,2]
[319707908,1710933047990,-151.0,0.00031954,2]
[319707909,1710933047999,-500.0,0.00031954,2]
[319707910,1710933048008,-2967.44,0.00031954,2]
[319707911,1710933048017,-504.44,0.00031954,2]
[319707912,1710933048026,-622.82,0.00031954,2]
[319707913,1710933048034,-653.87,0.00031954,2]
[319707914,1710933048044,-500.0,0.00031954,2]
[319707915,1710933048053,-2697.466852,0.00031955,2]
[319707916,1710933048062,-2697.466852,0.00031955,2]
[319707917,1710933048071,-2697.466852,0.00031955,2]
[319707918,1710933048080,-2697.466845,0.00031955,2]
[319707919,1710933048090,-500.0,0.00031955,2]
[319707920,1710933048099,-4203.28888928,0.00031955,2]
[319707950,1710933810511,150.0,0.00041041,30]
[319707951,1710933845331,270.0,0.00041041,30]
[319707959,1710934029129,-616.97666661,0.00028678,2]
[319707960,1710934029151,-48.74825212,0.00028679,2]
[319707961,1710934048168,-474.8794344,0.00028679,2]
[319707962,1710934054107,-2912.61189487,0.00028679,2]
[319707963,1710934054129,-5873.01830669,0.00028687,2]
[319707964,1710934054152,-300.0,0.00028787,2]
[319707965,1710934054176,-255.26301335,0.00028788,2]
[319707966,1710934054198,-343.981376,0.00028864,2]
[319707967,1710934054221,-177.0308096,0.00029024,2]
[319707968,1710934054245,-5787.55982408,0.00029167,2]
[319707969,1710934095473,154.8915759,0.00019,2]
[319707975,1710934215433,154.84515485,0.00019,2]
[319707976,1710934215483,65.03172466,0.00019,2]
[319708053,1710934232414,-160.68166387,0.00028205,2]
[319708054,1710934232427,-1698.16200787,0.00028206,2]
[319708055,1710934232436,-4747.73470018,0.0002849,2]
[319708056,1710934232446,-1537.480344,0.00028491,2]
[319708057,1710934232455,-167.193528,0.00028492,2]
[319708058,1710934232465,-185.89704262,0.00029316,4]
[319708059,1710934232475,-300.0,0.00029534,2]
[319708060,1710934232484,-250.0,0.00029535,2]
[319708061,1710934232494,-18909.0809096,0.00029535,2]
[319708062,1710934232503,-167.193528,0.00029787,2]
[319708063,1710934232515,-410.06999783,0.0003,3]
[319708064,1710934232524,-189.0,0.0003,2]
[319708065,1710934232534,-621.2436007,0.00030893,2]
[319708066,1710934232544,-2000.0,0.00031009,2]
[319708067,1710934232553,-167.193528,0.00031082,2]
[319708068,1710934232563,-3100.73785125,0.0003158,15]
[319708069,1710934232573,-153.0,0.00031589,2]
[319708070,1710934232582,-153.0,0.00031589,2]
[319708071,1710934232591,-153.6106027,0.00031589,2]
[319708072,1710934232601,-153.0,0.00031589,2]
[319708073,1710934232611,-427.26212698,0.00031678,2]
[319708074,1710934232621,-1468.46,0.00031679,2]
[319708075,1710934232630,-500.0,0.00031679,2]
[319708076,1710934232642,-750.88,0.00031679,2]
[319708077,1710934232651,-1000.0,0.00031743,2]
[319708078,1710934232661,-171.65182566,0.00031745,2]
[319708079,1710934232670,-1134.37264572,0.00031747,2]
[319708080,1710934232681,-5104.75720963,0.00031758,7]
[319708081,1710934232691,-170.78449117,0.00031799,2]
[319708082,1710934232702,-202.18468344,0.00031839,4]
[319708083,1710934232712,-331.89131947,0.00031839,4]
[319708084,1710934232722,-191.45799188,0.00031839,4]
[319708085,1710934232731,-199.96254302,0.00031839,4]
[319708086,1710934232740,-155.16447434,0.00031839,4]
[319708087,1710934232750,-616.83195842,0.00031839,4]
[319708088,1710934232759,-1728.36349342,0.00031839,4]
[319708089,1710934232768,-16755.44726592,0.00031839,3]
[319708090,1710934232778,-161.73502472,0.0003184,4]
[319708091,1710934232789,-1570.14224023,0.0003184,4]
[319708092,1710934232799,-582.33,0.0003184,2]
[319708093,1710934232810,-1852.025941,0.0003184,2]
[319708094,1710934232819,-1852.025941,0.0003184,2]
[319708095,1710934232830,-1852.025941,0.0003184,2]
[319708096,1710934232840,-1852.025941,0.0003184,2]
[319708097,1710934232850,-1852.025941,0.0003184,2]
[319708098,1710934232860,-359.6942461,0.0003184,2]
[319708099,1710934232871,-1852.025941,0.0003184,2]
[319708100,1710934232881,-1852.025941,0.0003184,2]
[319708101,1710934232891,-1852.025941,0.0003184,2]
[319708102,1710934232900,-1852.025941,0.0003184,2]
[319708103,1710934232909,-1852.025941,0.0003184,2]
[319708104,1710934232919,-500.0,0.0003184,2]
[319708105,1710934232932,-618.57247678,0.0003184,2]
[319708106,1710934232941,-500.0,0.0003184,2]
[319708107,1710934232951,-3278.26,0.0003184,2]
[319708108,1710934232961,-500.0,0.0003184,2]
[319708109,1710934232971,-160.0,0.00031841,10]
[319708110,1710934232981,-165.082439,0.00031841,2]
[319708111,1710934232992,-165.082439,0.00031841,2]
[319708112,1710934233005,-165.082439,0.00031841,2]
[319708113,1710934233015,-165.082439,0.00031841,2]
[319708114,1710934233024,-165.082439,0.00031841,2]
[319708115,1710934233033,-165.082439,0.00031841,2]
[319708116,1710934233042,-165.082439,0.00031841,2]
[319708117,1710934233051,-165.082439,0.00031841,2]
[319708118,1710934233060,-500.0,0.00031841,2]
[319708119,1710934233070,-3458.09,0.00031841,2]
[319708120,1710934233079,-1027.67,0.00031841,2]
[319708121,1710934233089,-18654.95744301,0.00031841,2]
[319708393,1710934239973,-500.0,0.00031839,2]
[319708394,1710934239983,-358.94544328,0.00031839,2]
[319708395,1710934239992,-342.58442594,0.00031839,2]
[319708396,1710934240002,-668.26950306,0.00031839,2]
[319708397,1710934240011,-500.0,0.00031839,2]
[319708398,1710934240020,-668.26950306,0.00031839,2]
[319708400,1710934240029,-500.0,0.00031839,2]
[319708402,1710934240041,-668.26950306,0.00031839,2]
[319708404,1710934240050,-668.26950306,0.00031839,2]
[319708406,1710934240060,-668.26950306,0.00031839,2]
[319708408,1710934240070,-244.67448534,0.00031839,2]
[319708410,1710934240079,-557.09906749,0.00031839,2]
[319708412,1710934240094,-111.17043557,0.00031839,2]
[319708414,1710934240104,-500.0,0.00031839,2]
[319708416,1710934240114,-668.26950306,0.00031839,2]
[319708418,1710934240124,-668.26950306,0.00031839,2]
[319708420,1710934240135,-500.0,0.00031839,2]
[319708422,1710934240145,-668.26950306,0.00031839,2]
[319708424,1710934240154,-668.26950306,0.00031839,2]
[319708426,1710934240163,-668.26950306,0.00031839,2]
[319708428,1710934240173,-668.26950306,0.00031839,2]
[319708430,1710934240185,-668.26950306,0.00031839,2]
[319708432,1710934240194,-668.26950306,0.00031839,2]
[319708434,1710934240203,-668.26950306,0.00031839,2]
[319708436,1710934240213,-668.26950306,0.00031839,2]
[319708438,1710934240222,-668.26950306,0.00031839,2]
[319708440,1710934240231,-668.26950306,0.00031839,2]
[319708442,1710934240241,-668.26950306,0.00031839,2]
[319708445,1710934240255,-668.26950306,0.00031839,2]
[319708447,1710934240264,-668.26950306,0.00031839,2]
[319708449,1710934240273,-668.26950306,0.00031839,2]
[319708451,1710934240282,-668.26950306,0.00031839,2]
[319708453,1710934240291,-668.26950306,0.00031839,2]
[319708455,1710934240300,-668.26950306,0.00031839,2]
[319708457,1710934240309,-668.26950306,0.00031839,2]
[319708459,1710934240319,-668.26950306,0.00031839,2]
[319708461,1710934240327,-668.26950306,0.00031839,2]
[319708463,1710934240337,-668.26950306,0.00031839,2]
[319708465,1710934240346,-668.26950306,0.00031839,2]
[319708467,1710934240355,-668.26950306,0.00031839,2]
[319708469,1710934240364,-668.26950306,0.00031839,2]
[319708471,1710934240373,-668.26950306,0.00031839,2]
[319708473,1710934240382,-668.26950306,0.00031839,2]
[319708475,1710934240394,-668.26950306,0.00031839,2]
[319708477,1710934240404,-668.26950306,0.00031839,2]
[319708479,1710934240413,-668.26950306,0.00031839,2]
[319708481,1710934240422,-668.26950306,0.00031839,2]
[319708483,1710934240433,-668.26950306,0.00031839,2]
[319708485,1710934240442,-668.26950306,0.00031839,2]
[319708487,1710934240452,-668.26950306,0.00031839,2]
[319708488,1710934240461,-668.26950306,0.00031839,2]
[319708490,1710934240470,-668.26950306,0.00031839,2]
[319708493,1710934240480,-668.26950306,0.00031839,2]
[319708494,1710934240489,-668.26950306,0.00031839,2]
[319708496,1710934240498,-668.26950306,0.00031839,2]
[319708498,1710934240507,-668.26950306,0.00031839,2]
[319708500,1710934240517,-668.26950306,0.00031839,2]
[319708502,1710934240525,-668.26950306,0.00031839,2]
[319708504,1710934240535,-668.26950306,0.00031839,2]
[319708506,1710934240545,-500.0,0.00031839,2]
[319708508,1710934240554,-500.0,0.0003184,2]
[319708510,1710934240563,-151.0,0.0003184,2]
[319708513,1710934240576,-58.45618193,0.0003184,2]
[319708779,1710934243047,-273.67047171,0.0003152,2]
[319708780,1710934243057,-92.54381807,0.0003184,2]
[319708782,1710934243067,-151.0,0.0003184,2]
[319708783,1710934243077,-151.0,0.0003184,2]
[319708784,1710934243086,-151.0,0.0003184,2]
[319708785,1710934243096,-151.0,0.0003184,2]
[319708786,1710934243105,-501.2026624,0.0003184,2]
[319708787,1710934243114,-2610.61,0.0003184,2]
[319708788,1710934243123,-643.43162495,0.00031841,2]
[319709001,1710934246208,-500.0,0.00031838,2]
[319709003,1710934246217,-166.75055813,0.00031838,2]
[319709005,1710934246226,-500.0,0.00031839,2]
[319709007,1710934246236,-239.85632398,0.00031839,2]
[319709009,1710934246245,-500.0,0.00031839,2]
[319709011,1710934246254,-215.88707238,0.00031839,4]
[319709013,1710934246264,-21617.10093204,0.00031841,2]
[319709015,1710934246273,-160.0,0.00031842,10]
[319709017,1710934246283,-151.782006,0.00031842,2]
[319709019,1710934246293,-3600.85,0.00031843,2]
[319709021,1710934246302,-500.0,0.00031843,2]
[319709023,1710934246312,-2241.3,0.00031843,2]
[319709025,1710934246321,-2066.28,0.00031843,2]
[319709027,1710934246331,-165.082439,0.00031843,2]
[319709029,1710934246340,-500.0,0.00031843,2]
[319709031,1710934246349,-165.082439,0.00031843,2]
[319709033,1710934246359,-3341.73,0.00031843,2]
[319709035,1710934246368,-500.0,0.00031843,2]
[319709037,1710934246378,-12887.29,0.00031843,2]
[319709039,1710934246387,-5886.11,0.00031843,2]
[319709041,1710934246396,-589.59,0.00031843,2]
[319709043,1710934246405,-500.0,0.00031843,2]
[319709045,1710934246414,-500.0,0.00031843,2]
[319709047,1710934246423,-2151.06,0.00031843,2]
[319709049,1710934246434,-5436.17,0.00031843,2]
[319709051,1710934246444,-500.0,0.00031843,2]
[319709053,1710934246453,-1852.025941,0.00031843,2]
[319709055,1710934246462,-500.0,0.00031843,2]
[319709057,1710934246471,-1852.025941,0.00031843,2]
[319709059,1710934246480,-500.0,0.00031843,2]
[319709061,1710934246489,-500.0,0.00031843,2]
[319709063,1710934246498,-500.0,0.00031843,2]
[319709065,1710934246508,-3482.85236606,0.00031843,2]
[319709105,1710934456455,500.0,0.00041048,120]
[319709107,1710935246089,-160.68166387,0.00029098,2]
[319709108,1710935246111,-214.08679154,0.00029098,2]
[319709182,1710935432245,-166.842286,0.00028436,2]
[319709183,1710935432254,-160.68166387,0.000287,2]
[319709184,1710935432263,-1.63927845,0.00028701,2]
[319709185,1710935432276,-289.34164429,0.00028701,2]
[319709186,1710935432286,-231.73015537,0.00028702,2]
[319709508,1710935437983,-1472.60277356,0.000287,2]
[319709511,1710935437996,-4.1272658,0.000287,2]
[319709513,1710935438007,-1305.75018863,0.00028702,2]
[319709514,1710935438017,-210.81749262,0.00028704,2]
[319709516,1710935438027,-494.44138683,0.00028994,2]
[319709517,1710935438038,-598.778121,0.00029053,2]
[319709519,1710935438048,-329.1418424,0.00029121,2]
[319709520,1710935438058,-378.23625243,0.00029263,2]
[319709522,1710935438070,-522.14578515,0.00029263,2]
[319709524,1710935438082,-634.91,0.00029263,2]
[319709562,1710935443222,-1259.29157471,0.00029263,2]
[319709604,1710935580044,500.0,0.00041079,30]
[319709605,1710935584875,500.0,0.00041079,30]
[319709606,1710935607693,499.99999,0.00041177,30]
[319709608,1710935675043,-319.9585759,0.0002104,15]
[319709609,1710935675170,-6.52976685,0.0002104,15]
[319709617,1710936175181,10000.0,0.0002,10]